Cogmind - Beta 15 @@@ ROGUE MODE // 2025.07.12 @ 01:50:40 Player: roc Result: Self-destructed Performance ------------- Evolutions (5) 2500 Regions Visited (18) 3600 Robots Destroyed (250) 1250 Value Destroyed (8375) 8375 Prototype IDs (228) 4560 Alien Tech Used (0) 0 Bonus (5730) 5730 TOTAL SCORE: 26015 Bonus ------- High Alert Combat Kills 666 Follower Combat Kills 464 Registered with UFD 300 Met Optimus in HQ 500 Met Data Miner 300 Used Data Conduit 3000 Pursued by Intercept 500 Cogmind --------- Core Integrity 683/1000 Matter 60/300 Energy 100/100 System Corruption 24% Temperature Cool (0) Movement Rolling (125) Ox3 Location -5/Factory Parts ------- > --- POWER (2) -------- (None) > --- PROPULSION (4) --- Wheel > --- UTILITY (7) ------ High-capacity Storage Unit > --- WEAPON (4) ------- (None) > --- INVENTORY (20) --- F-cell Engine Improved Cryofiber Web Coolant Injector Advanced Energy Well (500) Matter Compressor (0) Experimental Targeting Computer Recoil Stabilizer Makeshift Transmission Jammer Improved Hardlight Generator Dimensional Node Initializer Improved Datajack Plasma Cutter CPS Tube (1) Peak State ------------ > --- POWER ------------ Antimatter Reactor Antimatter Reactor > --- PROPULSION ------- Enhanced Flexi-carbon Leg Compact Wheel Overtuned Huge Scrapsphere > --- UTILITY ---------- Scrap Suit High-capacity Storage Unit Recoil Stabilizer Heavy Reactive Plating Improved Hardlight Generator > --- WEAPON ----------- Enhanced Coil Gun Enhanced Coil Gun Linked Autogun > --- INVENTORY -------- Improved Cryofiber Web Coolant Injector Advanced Energy Well Matter Compressor Matter Compressor Long-range Sensor Array Seismic Detector Experimental Targeting Computer Makeshift Transmission Jammer Layered Medium Armor Plating Layered Medium Armor Plating Experimental Thermal Shield Improved Trap Extractor Dimensional Node Initializer Neutron Cannon Precision Rocket Launcher Precision Rocket Launcher Improved Datajack Plasma Cutter CPS Tube [Rating: 102] Favorites ----------- Power Reinforced Ion Engine Engine Reinforced Ion Engine Power Core Fission Core Reactor Antimatter Reactor Propulsion Light Treads Treads Light Treads Leg Enhanced Flexi-carbon Leg Wheel Armored Wheel Flight Unit Improved VTOL Module Utility Huge Storage Unit Device Microactuators Storage Huge Storage Unit Processor Advanced Signal Interpreter Hackware Hacking Suite Protection Heavy Reactive Plating Weapon Spear Energy Gun Thermic Laser Energy Cannon Advanced Beam Cannon Ballistic Gun Heavy Assault Rifle Ballistic Cannon Light Cannon Launcher Rocket Launcher Special Weapon CPS Tube Slashing Weapon Chainsword Piercing Weapon Spear Special Melee Weapon Improved Datajack Build | -11 -10 -10 -9 -9 -9 -8 -8 -8 -8 -8 -6 -6 -6 -6 -6 -6 -5 -5 ------- Run | Yrd Mat Min Mat Min Exi Min Mat Sto Rec Scr Fac Was Fac Low Low Dat Pro Fac Slots Evolved 10 | . . . 2 . . . 2 . . . 4 . . . . . . 2 Power 1 | . . . . . . . . . . . . . . . . . . 1 Propulsion 2 | . . . . . . . 1 . . . 1 . . . . . . . Utility 5 | . . . . . . . 1 . . . 3 . . . . . . 1 Weapon 2 | . . . 2 . . . . . . . . . . . . . . . Parts Attached 187 | 6 9 3 32 3 . 4 28 5 2 1 15 . 47 1 2 12 1 16 Power 16 | 1 1 . 2 1 . . 2 . . 1 . . 3 . . 2 . 3 Engine 10 | 1 1 . 2 1 . . 2 . . 1 . . . . . . . 2 Core 4 | . . . . . . . . . . . . . 3 . . 1 . . Reactor 2 | . . . . . . . . . . . . . . . . 1 . 1 Propulsion 42 | 2 3 . 9 1 . 3 4 1 . . 4 . 9 1 . 2 . 3 Treads 17 | 2 . . 6 . . 2 4 . . . . . 3 . . . . . Leg 3 | . 1 . . . . . . . . . . . . . . 2 . . Wheel 13 | . 2 . 2 1 . 1 . . . . . . 3 1 . . . 3 Hover . | . . . . . . . . . . . . . . . . . . . Flight 9 | . . . 1 . . . . 1 . . 4 . 3 . . . . . Utility 61 | 1 3 . 3 . . 1 7 . . . 10 . 21 . 1 7 1 6 Device 28 | . 1 . 2 . . 1 6 . . . 2 . 9 . 1 4 . 2 Storage 8 | 1 2 . 1 . . . . . . . . . 2 . . 2 . . Processor 9 | . . . . . . . . . . . 5 . 3 . . 1 . . Hackware 6 | . . . . . . . . . . . 2 . 3 . . . . 1 Protection 10 | . . . . . . . 1 . . . 1 . 4 . . . 1 3 Artifact . | . . . . . . . . . . . . . . . . . . . Weapon 68 | 2 2 3 18 1 . . 15 4 2 . 1 . 14 . 1 1 . 4 Energy Gun 11 | . . . . . . . 5 . . . . . 5 . 1 . . . Energy Cannon 12 | . . . 6 . . . . . . . . . 5 . . 1 . . Ballistic Gun 13 | 2 . . 4 . . . 4 . . . . . . . . . . 3 Ballistic Cannon 9 | . 2 1 6 . . . . . . . . . . . . . . . Launcher 10 | . . 1 2 1 . . 1 3 . . . . 2 . . . . . Special Weapon 1 | . . . . . . . . . . . . . . . . . . 1 Impact Weapon . | . . . . . . . . . . . . . . . . . . . Slashing Weapon 4 | . . 1 . . . . . 1 1 . 1 . . . . . . . Piercing Weapon 4 | . . . . . . . 4 . . . . . . . . . . . Special Melee Weapon 4 | . . . . . . . 1 . 1 . . . 2 . . . . . Unidentified Prototypes 11 | . . . 2 . . . 1 2 . . 1 . 4 . . . . 1 Corrupted Parts 11 | . . . . . . 2 . . . . . . . . . 8 . 1 System Corruption 64 | . . . . . . 9 . . . . . . . . . 45 . 10 Parts Lost 34 | . 1 1 4 . . . 6 1 1 . 1 . 6 . . . . 13 Power 4 | . . . . . . . . 1 . . . . 1 . . . . 2 Propulsion 10 | . 1 . 2 . . . 2 . 1 . 1 . . . . . . 3 Utility 8 | . . . 1 . . . 1 . . . . . 2 . . . . 4 Weapon 12 | . . 1 1 . . . 3 . . . . . 3 . . . . 4 Highest Loss Streak 8 | . 1 1 2 . . . 3 1 1 . 1 . 2 . . . . 8 To Critical Strikes . | . . . . . . . . . . . . . . . . . . . Average Backups 20 | 2 19 24 24 24 24 25 24 24 25 25 5 5 5 20 20 18 19 18 Power 1 | . 3 3 2 1 1 1 . . . . . . . 1 1 1 1 . Propulsion 4 | 1 5 6 5 5 5 5 5 6 7 7 . . . 1 1 . . . Utility 7 | . 3 5 5 8 8 9 9 12 12 12 2 2 2 10 10 11 12 11 Weapon 5 | . 6 9 9 8 8 7 5 4 4 4 1 1 1 6 6 3 4 3 Tool/Special . | . . . . . . . . . . . . . . . . . . . Unused Backups 76 | . 8 3 15 3 1 2 10 4 . 1 5 . 15 1 . 1 . 7 Power 5 | . 4 . 1 . . . . . . . . . . . . . . . Propulsion 10 | . 1 . . . . . 1 4 . . 2 . 2 . . . . . Utility 32 | . 2 . 3 2 1 1 6 . . 1 2 . 8 1 . 1 . 4 Weapon 25 | . 1 3 10 1 . 1 3 . . . 1 . 5 . . . . . Tool/Special 4 | . . . 1 . . . . . . . . . . . . . . 3 Average Slot Usage (%) 93 | . 91 100 99 100 59 99 99 99 91 90 96 100 95 88 86 77 86 75 Engine 7 | . 14 14 11 11 11 11 9 9 9 9 6 6 1 . . . . 1 Core 1 | . . . . . . . . . . . . . 4 6 6 2 . . Treads 10 | . 18 14 14 11 11 11 13 7 9 9 . . 1 13 13 9 6 3 Wheel 8 | . 9 14 7 11 11 11 13 17 10 9 . . 1 8 6 6 6 4 Flight 3 | . . . . . . . . 1 . . 25 26 22 . . . . . Device 13 | . 6 14 10 11 11 10 15 18 18 18 7 13 9 20 20 13 20 17 Storage 8 | . 14 14 11 11 11 11 9 9 9 9 . . . 6 6 11 6 4 Processor 1 | . . . . . . . . . . . 11 13 9 . . . . . Hackware 1 | . . . . . . . . . . . 11 6 13 . . . . 2 Protection 1 | . . . . . . . 2 . . . 5 6 4 6 6 6 6 4 Energy Gun 2 | . . . . . . . 6 . . . . . . 19 19 . 14 5 Energy Cannon 9 | . . . 20 39 4 44 3 . . . . . 2 6 6 16 11 1 Ballistic Gun 2 | . 3 . 11 . . . 5 . . . . . . . . . . 10 Ballistic Cannon 5 | . 24 27 11 . . . . . . . . . . . . . . . Slashing Weapon 2 | . . . . . . . . 5 8 9 6 6 3 . . . . . Piercing Weapon 8 | . . . . . . . 19 30 27 27 20 20 12 . . . . . Peak Build Rating 102 | 6 10 10 23 24 24 29 40 39 39 40 61 57 66 76 76 93 87 102 Average Rating 37 | 4 8 9 17 23 13 24 34 38 38 39 57 57 58 68 70 74 79 82 On Entrance 40 | . 6 10 10 23 24 24 25 39 39 39 40 57 57 65 76 68 87 87 Naked Turns 1 | . . . . . . . . . . . . . . . . . . 1 Heaviest Build 142 | 13 97 97 107 108 108 109 110 106 106 106 20 20 115 115 112 130 129 142 Greatest Support 40 | 40 40 20 40 12 12 12 22 22 22 12 20 20 32 28 28 28 28 36 Greatest Overweight (x) 33 | . 6 6 10 10 8 10 10 4 8 8 1 . 4 8 3 4 4 33 Average Overweight (x) 3 | . 4 5 7 8 7 8 6 4 7 8 . . . 3 3 3 3 3 Largest Inventory Capacity 25 | 8 25 25 25 25 25 25 25 25 25 25 25 5 20 20 20 20 20 20 Average Capacity 21 | 7 21 25 25 25 25 25 25 25 25 25 5 5 6 20 20 20 20 19 Most Carried 25 | 6 25 25 25 25 25 25 25 25 25 25 24 5 20 20 20 20 20 20 Average Carried 20 | 2 19 24 24 24 24 24 24 24 25 25 5 5 5 20 20 18 19 18 Final Capacity 25 | 8 25 25 25 25 25 25 25 25 25 25 5 5 20 20 20 20 20 20 Final Carried 25 | 6 25 24 25 25 25 25 25 25 25 25 5 5 20 20 20 20 19 13 Class Distribution -------------------- 25% | Gunner 22% | Gladiator 18% | Mutant 13% | Tank 7% | Hacker-Sprinter 4% | Scavenger-Tank 3% | Sprinter Dominant Class ---------------- Mutant | -10/Materials Mutant | -10/Mines Gunner | -9/Materials Gunner | -9/Mines Mutant | -9/Exiles Gunner | -8/Mines Gladiator | -8/Materials Gladiator | -8/Storage Gladiator | -8/Recycling Gladiator | -8/Scraptown Hacker-Sprinter | -6/Factory Sprinter | -6/Waste Hacker-Sprinter | -6/Factory Tank | -6/Lower Caves Tank | -6/Lower Caves Scavenger-Tank | -6/Data Miner Scavenger-Tank | -5/Proximity Caves Scavenger-Tank | -5/Factory Resources | -11 -10 -10 -9 -9 -9 -8 -8 -8 -8 -8 -6 -6 -6 -6 -6 -6 -5 -5 ----------- Run | Yrd Mat Min Mat Min Exi Min Mat Sto Rec Scr Fac Was Fac Low Low Dat Pro Fac Matter Collected 7737 | 240 883 228 939 142 6 134 705 138 20 10 160 70 1326 281 322 680 227 1226 Remotely . | . . . . . . . . . . . . . . . . . . . Salvage Created 9491 | . 743 95 1590 235 . 444 1340 291 295 . 74 . 1611 358 355 430 251 1379 Parts 523 | . 60 6 126 16 . 16 73 17 16 . 7 . 88 13 4 21 8 52 Haulers Intercepted 13 | . 2 . 4 . . . 2 1 . . . . 4 . . . . . Recyclers Shooed 5 | . . . . . . . . . . . . . 2 . . . . 3 Parts Field Recycled . | . . . . . . . . . . . . . . . . . . . Retrieved Matter . | . . . . . . . . . . . . . . . . . . . Parts Self-Destructed 24 | . . . . . . . . . . . . . . 17 3 . 4 . Prevented 4 | . . . . . . . . . . . . . . . . . 4 . Kills | -11 -10 -10 -9 -9 -9 -8 -8 -8 -8 -8 -6 -6 -6 -6 -6 -6 -5 -5 ------- Run | Yrd Mat Min Mat Min Exi Min Mat Sto Rec Scr Fac Was Fac Low Low Dat Pro Fac Combat Hostiles Destroyed 183 | . 25 10 40 9 . 9 22 4 3 . 1 . 15 6 6 4 4 25 Melee 29 | . . . . . . . 8 4 3 . 1 . 13 . . . . . Guns 42 | . 6 . 12 . . . 6 . . . . . 1 2 1 . 2 12 Cannons 71 | . 19 7 22 7 . 6 5 . . . . . 1 2 . . 1 1 AOE 28 | . . 3 6 2 . 2 3 . . . . . . . . . . 12 Classes Destroyed 21 | . 7 . 3 2 . 1 3 . . . . . 1 2 . . 1 1 Worker 7 | . 1 . 2 1 . . 1 . . . . . . . . . . 2 Builder 11 | . . . 3 . . . . . . . . . 1 . . . . 7 Tunneler 3 | . . . . 2 . 1 . . . . . . . . . . . . Hauler 13 | . 2 . 4 . . . 2 1 . . . . 4 . . . . . Recycler 12 | . 1 . . . . 1 2 . 2 . . . 4 . . . . 2 Minesweeper 2 | . . . . . . . . . . . . . . 2 . . . . Mechanic 1 | . . . 1 . . . . . . . . . . . . . . . Operator 9 | . 1 . 1 . . . 2 2 . . . . 3 . . . . . Watcher 11 | . 1 . 4 . . . 2 . . . . . 4 . . . . . Swarmer 46 | . 8 8 16 5 . 3 3 . . . . . 3 . . . . . Cutter 4 | . . . . . . . 2 . . . . . 2 . . . . . Grunt 68 | . 17 2 14 2 . 5 10 3 . . . . . 2 . . 2 11 Brawler 1 | . . . . . . 1 . . . . . . . . . . . . Duelist 5 | . . . . . . . . . . . . . . 1 . . 1 3 Protector 1 | . . . . . . . . . . . . . . . . . . 1 Sentry 21 | . . . 10 . . . 3 1 3 . 1 . 1 . 2 . . . Hunter 12 | . . . . . . . 3 . . . . . . 2 2 . . 5 Programmer 13 | . . . . . . . . . . . . . 9 1 . . . 3 Heavy 1 | . . . . . . . 1 . . . . . . . . . . . Behemoth 1 | . . . . . . . . . . . . . . . . . 1 . Enhanced Grunt 4 | . . . . . . . . . . . . . . . . 4 . . Tracker 1 | . . . . . . . . . . . . . . . . . . 1 Combat Programmer 1 | . . . . . . . . . . . . . . . . . . 1 Assembled 2 | . . . . 2 . . . . . . . . . . . . . . Butcher 2 | . . . . . . . . . . . . . . . 2 . . . Best Kill Streak 10 | . 5 4 5 3 . 3 3 3 2 . 1 . 4 3 2 2 2 10 Combat Bots Only 6 | . 5 4 5 3 . 3 3 1 2 . 1 . 3 3 2 2 2 6 Max Kills in Single Turn 5 | . 2 1 5 1 . 2 2 1 1 . 1 . 1 1 1 1 1 3 Gunslinging 1 | . 1 . . . . . 1 . . . . . . . . . . . Exploded 3 | . . 1 3 1 . 2 2 . . . . . . . . . . 2 Melee 1 | . . . . . . . 1 1 1 . 1 . 1 . . . . . Uniques/NPCs Destroyed . | . . . . . . . . . . . . . . . . . . . Combat | -11 -10 -10 -9 -9 -9 -8 -8 -8 -8 -8 -6 -6 -6 -6 -6 -6 -5 -5 -------- Run | Yrd Mat Min Mat Min Exi Min Mat Sto Rec Scr Fac Was Fac Low Low Dat Pro Fac Hostile Shots Fired 999 | . 72 41 109 25 . 24 109 13 4 . 8 . 148 33 54 20 26 313 Missed 292 | . 24 11 25 7 . 2 36 5 2 . 3 . 67 12 16 7 8 67 Hits 707 | . 48 30 84 18 . 22 73 8 2 . 5 . 81 21 38 13 18 246 Melee 11 | . . . . 1 . . 2 . . . . . 5 . 3 . . . Projectile 696 | . 48 30 84 17 . 22 71 8 2 . 5 . 76 21 35 13 18 246 AOE 5 | . . . . 1 . . 3 . . . . . 1 . . . . . Critical Strikes 24 | . . 2 4 1 . 2 1 1 . . 1 . 5 . . . . 7 Part Disruptions 2 | . . . . . . . . . . . . . . . . . . 2 Damage Taken 10455 | . 514 265 941 296 . 362 1391 243 30 . 94 40 1079 286 397 537 158 3822 Core 1401 | . 72 34 97 55 . . 302 48 . . . . 357 . 22 97 . 317 Absorbed by Shields 498 | . . . . . . . . . . . . . . . . . 6 492 Redirected to Shielding 106 | . . . . . . . . . . . . . . . . . . 106 Ignored by Resistances 813 | . . . . . . . . . . . . . . 112 182 68 66 385 Regen/Repaired (Parts) 275 | . . . 96 . . . 61 36 . . . 25 47 . . . . 10 Core Remaining (%) 59 | 100 . 57 . . . 62 . . . 36 . . . . . . 44 . Volleys Fired 345 | . 60 21 62 15 . 15 38 1 . . . . 6 12 14 16 9 76 Largest 4 | . 2 2 4 4 . 4 4 1 . . . . 4 4 4 3 4 4 Hottest 336 | . 60 60 272 272 . 272 272 36 . . . . 330 330 330 225 336 336 Shots Fired 1037 | . 120 41 239 49 . 57 140 1 . . . . 24 50 51 35 35 195 Gun 510 | . 38 . 86 . . . 107 . . . . . 12 38 39 . 22 168 Cannon 499 | . 82 40 150 44 . 56 29 . . . . . 12 12 12 35 13 14 Launcher 27 | . . 1 3 5 . 1 4 1 . . . . . . . . . 12 Special 1 | . . . . . . . . . . . . . . . . . . 1 Kinetic 524 | . 120 40 160 . . . 63 . . . . . . . . . . 141 Thermal 438 | . . . 76 44 . 56 73 . . . . . 17 50 51 . 30 41 Explosive 27 | . . 1 3 5 . 1 4 1 . . . . . . . . . 12 Electromagnetic 47 | . . . . . . . . . . . . . 7 . . 35 5 . Robot Hit Streak 20 | . 19 7 17 12 . 12 10 . . . . . 8 16 17 13 9 20 Robot Miss Streak 7 | . 3 4 4 3 . 4 4 . . . . . 5 2 3 1 2 7 Penetration Max 1 | . . . . . . . 1 . . . . . . . . . . 1 Secondary Targets 6 | . 2 . 2 . . . 1 . . . . . . . . . 1 . Max Gunslinging Chain 1 | . 1 . 1 . . . 1 . . . . . . . . . 1 . Shots Hit Robots 710 | . 84 14 113 23 . 29 118 17 9 . 1 . 76 35 35 23 21 112 Core Hits 355 | . 33 11 63 15 . 18 46 7 5 . 1 . 32 22 12 5 9 76 Critical Kills 2 | . . . 1 . . . . . . . . . . . 1 . . . Critical Parts Destroyed 5 | . . . 1 . . . . . . . . . . . . . . 4 Critical Strikes 34 | . 2 2 4 . . . 6 . 1 . . . 5 3 4 . 3 4 Burn 11 | . . . . . . . 2 . . . . . . 3 3 . 3 . Meltdown 1 | . . . . . . . . . . . . . . . 1 . . . Destroy 6 | . . . 2 . . . . . . . . . . . . . . 4 Blast 6 | . 2 2 2 . . . . . . . . . . . . . . . Sever 1 | . . . . . . . . . 1 . . . . . . . . . Impale 9 | . . . . . . . 4 . . . . . 5 . . . . . Melee Attacks 313 | . . 18 . . . . 56 43 12 . 3 . 168 . . 13 . . Impact . | . . . . . . . . . . . . . . . . . . . Slashing 68 | . . 18 . . . . . 9 6 . 2 . 33 . . . . . Piercing 243 | . . . . . . . 56 33 5 . 1 . 135 . . 13 . . Sneak Attacks 37 | . . . . . . . 6 5 5 . . . 20 . . 1 . . Combat Hostiles 5 | . . . . . . . . . 1 . . . 4 . . . . . Follow-up Attacks 44 | . . . . . . . 19 5 2 . . . 18 . . . . . Damage Inflicted 21856 | . 1275 548 2401 727 . 741 3129 610 393 . 47 . 3451 802 782 489 560 5901 Guns 6923 | . 250 . 576 . . . 1027 . . . . . 197 590 575 . 378 3330 Cannons 5492 | . 1025 272 1406 492 . 594 432 . . . . . 61 212 207 438 182 171 Explosions 3776 | . . 276 419 235 . 147 299 31 . . . . . . . . . 2369 Melee 5634 | . . . . . . . 1371 579 393 . 47 . 3193 . . 51 . . Ramming 31 | . . . . . . . . . . . . . . . . . . 31 Kinetic 6160 | . 1275 272 1245 . . . 547 . . . . . . . . . . 2821 Thermal 6281 | . . 194 737 492 . 594 912 . . . . . 258 802 782 . 504 1006 Explosive 3256 | . . 82 419 235 . 147 299 31 . . . . . . . . . 2043 Electromagnetic 494 | . . . . . . . . . . . . . . . . 438 56 . Impact . | . . . . . . . . . . . . . . . . . . . Slashing 1192 | . . . . . . . . 140 307 . 47 . 698 . . . . . Piercing 4442 | . . . . . . . 1371 439 86 . . . 2495 . . 51 . . Highest Corruption 59 | . . . . 1 1 10 . . . . 1 1 13 14 14 59 59 24 Average Corruption 11 | . . . . 1 1 1 . . . . 1 1 5 13 14 35 59 13 Corruption Purged . | . . . . . . . . . . . . . . . . . . . Corruption Blocked . | . . . . . . . . . . . . . . . . . . . Effects 318 | . . . . 4 4 14 . . . . . 2 80 49 40 38 39 48 Message Errors 72 | . . . . 1 . 1 . . . . . . 19 10 10 11 5 15 Matter Fused 76 | . . . . 1 1 6 . . . . . 1 20 10 13 10 3 11 Heat Flow Errors 41 | . . . . . 1 3 . . . . . . 13 5 5 3 5 6 Energy Discharges 36 | . . . . . 1 1 . . . . . . 12 8 1 3 8 2 Parts Rejected 2 | . . . . . . . . . . . . . . . . . . 2 Parts Fused 9 | . . . . . . . . . . . . . 4 1 1 2 1 . Data Loss (minor) 27 | . . . . 1 1 2 . . . . . 1 4 6 2 6 3 1 Data Loss (major) 14 | . . . . . . . . . . . . . 2 4 2 . 3 3 Misfires 16 | . . . . 1 . 1 . . . . . . 3 2 . 1 5 3 Alerts 9 | . . . . . . . . . . . . . 1 3 1 1 3 . Misdirections 2 | . . . . . . . . . . . . . 1 . . . . 1 Weapon Failures 14 | . . . . . . . . . . . . . 1 . 5 1 3 4 Overload Shots . | . . . . . . . . . . . . . . . . . . . Overflow Damage 791 | . 7 51 52 22 . . 89 45 47 . . . 419 . 13 . . 46 Projectiles 65 | . 7 14 15 16 . . . . . . . . . . 13 . . . Explosions 148 | . . 37 37 6 . . 22 . . . . . . . . . . 46 Melee 578 | . . . . . . . 67 45 47 . . . 419 . . . . . Knockbacks 16 | . 12 2 2 . . . . . . . . . . . . . . . Impact . | . . . . . . . . . . . . . . . . . . . Kinetic 15 | . 11 2 2 . . . . . . . . . . . . . . . Secondary 1 | . 1 . . . . . . . . . . . . . . . . . Self-Inflicted Damage 370 | . . . . 27 . 41 13 21 . . . . . . . . . 268 Shots 11 | . . . . 2 . 1 1 1 . . . . . . . . . 6 Rammed 9 | . . . . . . . . . . . . . . . . . . 9 Targets Rammed 9 | . . . . . . . . . . . . . . . . . . 9 Kicked . | . . . . . . . . . . . . . . . . . . . Crushed . | . . . . . . . . . . . . . . . . . . . Highest Temperature 383 | . 159 3 256 383 71 303 204 2 . . 37 . 224 102 180 205 242 336 Average Temperature 86 | . 60 3 70 124 50 115 48 2 . . 21 . 94 48 56 96 96 101 Received Heat Transfer 1859 | . 168 18 321 6 . 207 291 84 18 . 46 . 24 54 24 . 99 499 Effects 1 | . . . . . . 1 . . . . . . . . . . . . Short Circuit 1 | . . . . . . 1 . . . . . . . . . . . . Siege Activations . | . . . . . . . . . . . . . . . . . . . Martial Activations . | . . . . . . . . . . . . . . . . . . . Shielding Activations . | . . . . . . . . . . . . . . . . . . . Robots Disrupted . | . . . . . . . . . . . . . . . . . . . Combat Hostiles . | . . . . . . . . . . . . . . . . . . . Robots Corrupted 4 | . . . . . . . . . . . . . . . . 4 . . Combat Hostiles 4 | . . . . . . . . . . . . . . . . 4 . . Parts Fried 7 | . . . . . . . . . . . . . . . . 6 1 . Impact Corruptions . | . . . . . . . . . . . . . . . . . . . Robots Melted 9 | . . . . . . 1 . . . . . . . 2 5 . 1 . Combat Hostiles 9 | . . . . . . 1 . . . . . . . 2 5 . 1 . Parts Melted 48 | . . . 2 3 . 6 3 . . . . . 2 13 16 . 3 . Heat Transferred 12435 | . . 250 1406 888 . 1073 1813 . . . . . 500 2150 2125 . 1048 1182 Parts Sabotaged . | . . . . . . . . . . . . . . . . . . . Parts Stolen . | . . . . . . . . . . . . . . . . . . . Parts Stripped . | . . . . . . . . . . . . . . . . . . . Power Chain Reactions . | . . . . . . . . . . . . . . . . . . . Alert | -11 -10 -10 -9 -9 -9 -8 -8 -8 -8 -8 -6 -6 -6 -6 -6 -6 -5 -5 ------- Run | Yrd Mat Min Mat Min Exi Min Mat Sto Rec Scr Fac Was Fac Low Low Dat Pro Fac Maximum Alert Level 3 | . 1 1 3 1 . . 1 . . . . . 2 . . . . 3 Low Security (%) 72 | 100 90 87 55 74 . 100 90 100 100 . 100 100 40 . . . . 29 Level 1 15 | . 9 12 8 25 . . 9 . . . . . 41 . . . . 37 Level 2 9 | . . . 34 . . . . . . . . . 18 . . . . 3 Level 3 1 | . . . 1 . . . . . . . . . . . . . . 28 Level 4 . | . . . . . . . . . . . . . . . . . . . Level 5 . | . . . . . . . . . . . . . . . . . . . High Security . | . . . . . . . . . . . . . . . . . . . Max Security . | . . . . . . . . . . . . . . . . . . . Peak Influence 969 | . 269 298 721 329 . 89 258 104 35 . 95 36 469 . . . . 969 Initial 279 | . . 103 8 279 . . . 104 . . . 21 . . . . . 8 Average 150 | . 96 91 249 145 . 15 62 37 7 . 42 7 244 . . . . 412 Influence Increases 7757 | . 785 428 1322 239 . 276 729 254 212 . 150 74 1474 155 90 . 100 1469 Destroy 0b10 Robot/C 3780 | . 500 200 800 160 . 180 440 80 60 . 20 . 480 120 80 . 80 580 Destroy 0b10 Robot/NC 355 | . 30 . 75 15 . 10 45 15 10 . . . 85 10 . . . 60 Destroy Leader 890 | . 96 40 206 30 . 30 128 12 . . 10 . 188 10 10 . 20 110 Allied During Kill 133 | . . . . 4 . 14 . . . . . . 86 . . . . 29 Trap Triggered on 0b10 50 | . . . . . . . . . . . . . 50 . . . . . Successful Hack 144 | . 15 . 58 . . . 10 13 22 . . . 17 . . . . 9 Select Force Hacks 180 | . 60 . . . . . . . 120 . . . . . . . . . Disable Machine 615 | . 30 150 45 . . . . 90 . . 15 . 75 . . . . 210 Destroy Structure 665 | . 9 38 33 30 . 12 31 14 . . . 59 43 . . . . 396 Partial Spotted 210 | . . . 15 . . . . . . . . 15 180 . . . . . Lose Combat Pursuer 735 | . 45 . 90 . . 30 75 30 . . 105 . 270 15 . . . 75 Influence Decreases 6814 | . 518 672 627 957 . 276 481 502 212 . 90 134 1006 623 90 . 86 540 Entered New Map 981 | . . 164 15 439 . . . 144 . . . 39 . 174 . . . 6 Time Decay 5124 | . 508 498 582 518 . 256 432 348 202 . 80 45 686 449 90 . 86 344 Lost Part 319 | . 10 10 30 . . . 49 10 10 . 10 . 60 . . . . 130 Lost Ally 390 | . . . . . . 20 . . . . . 50 260 . . . . 60 Squads Dispatched 58 | . 7 . 4 . . . 5 3 . . 1 . 25 . . . . 13 Investigation 23 | . 5 . 2 . . . . 1 . . . . 11 . . . . 4 Extermination 13 | . . . . . . . . . . . 1 . 9 . . . . 3 Reinforcement 18 | . 2 . 1 . . . 5 2 . . . . 5 . . . . 3 Assault 2 | . . . 1 . . . . . . . . . . . . . . 1 Garrison . | . . . . . . . . . . . . . . . . . . . Intercept 2 | . . . . . . . . . . . . . . . . . . 2 Searches Triggered . | . . . . . . . . . . . . . . . . . . . Construction Impeded 2 | . . . . . . . . . . . . . . . . . . 2 Haulers Reinforced 2 | . . . . . . . . . . . . . 1 . . . . 1 Active Scanning Responses . | . . . . . . . . . . . . . . . . . . . Cargo Convoy Interrupts . | . . . . . . . . . . . . . . . . . . . Stealth | -11 -10 -10 -9 -9 -9 -8 -8 -8 -8 -8 -6 -6 -6 -6 -6 -6 -5 -5 --------- Run | Yrd Mat Min Mat Min Exi Min Mat Sto Rec Scr Fac Was Fac Low Low Dat Pro Fac Distress Signals 14 | . 2 . 3 . . . 5 1 . . . . 3 . . . . . Communications Jammed . | . . . . . . . . . . . . . . . . . . . Distress Signals . | . . . . . . . . . . . . . . . . . . . Times Spotted 355 | . 50 11 56 18 . 11 37 36 3 . 8 8 57 7 6 4 4 39 Peak Tracking Total 18 | . 5 3 6 18 . 3 5 8 2 . 7 5 5 3 2 2 3 7 Tactical Retreats 39 | . 3 . 5 . . 2 3 2 . . 2 1 16 1 . . . 4 Traps | -11 -10 -10 -9 -9 -9 -8 -8 -8 -8 -8 -6 -6 -6 -6 -6 -6 -5 -5 ------- Run | Yrd Mat Min Mat Min Exi Min Mat Sto Rec Scr Fac Was Fac Low Low Dat Pro Fac Traps Triggered 10 | . 3 . 1 . . . . 2 . . 2 . 2 . . . . . Indirectly . | . . . . . . . . . . . . . . . . . . . Trap Hack Attempts 34 | . . . . . . . 31 . . . . . 3 . . . . . Triggered . | . . . . . . . . . . . . . . . . . . . Disarmed . | . . . . . . . . . . . . . . . . . . . Reprogrammed 6 | . . . . . . . 4 . . . . . 2 . . . . . Reused 5 | . . . . . . . . . . . . . 5 . . . . . Traps Extracted 11 | . . . . . . . 4 . . . . . 5 2 . . . . Installed 8 | . . . . . . . . . . . . . 8 . . . . . Triggered 5 | . . . . . . . . . . . . . 5 . . . . . Most Traps Carried 6 | . . . . . . . 4 4 4 4 4 4 5 6 6 6 6 6 Machines | -11 -10 -10 -9 -9 -9 -8 -8 -8 -8 -8 -6 -6 -6 -6 -6 -6 -5 -5 ---------- Run | Yrd Mat Min Mat Min Exi Min Mat Sto Rec Scr Fac Was Fac Low Low Dat Pro Fac Machines Disabled 42 | . 2 10 3 . . . . 6 . . 1 . 5 . . . 1 14 Max in Single Turn 6 | . 1 6 1 . . . . 1 . . 1 . 1 . . . 1 6 Garrison Access 3 | . . . . . . . . . . . 2 . 1 . . . . . Machines Repaired . | . . . . . . . . . . . . . . . . . . . Machines Dismantled . | . . . . . . . . . . . . . . . . . . . Machines Sabotaged . | . . . . . . . . . . . . . . . . . . . Overloaded Fab Kills . | . . . . . . . . . . . . . . . . . . . Hacking | -11 -10 -10 -9 -9 -9 -8 -8 -8 -8 -8 -6 -6 -6 -6 -6 -6 -5 -5 --------- Run | Yrd Mat Min Mat Min Exi Min Mat Sto Rec Scr Fac Was Fac Low Low Dat Pro Fac Machines Accessed 88 | . 5 . 12 1 1 . 4 5 10 5 5 . 29 1 . 4 1 5 Terminals 41 | . 3 . 10 . . . 3 3 6 . 2 . 13 . . . . 1 Fabricators 7 | . . . . . . . . . . . . . 5 . . . . 2 Repair Stations 4 | . . . 1 . . . 1 1 . . . . 1 . . . . . Recycling Units 14 | . 2 . . . . . . . 4 . . . 6 . . . . 2 Scanalyzers 4 | . . . 1 . . . . . . . 1 . 2 . . . . . Garrison Access 5 | . . . . . . . . 1 . . 2 . 2 . . . . . Total Hacks 230 | . 15 . 22 1 23 . 10 9 17 13 7 . 68 1 . 32 1 11 Successful 148 | . 9 . 14 1 23 . 6 5 11 13 4 . 21 1 . 32 1 7 Failed 82 | . 6 . 8 . . . 4 4 6 . 3 . 47 . . . . 4 Catastrophic 16 | . 1 . . . . . . 2 . . . . 13 . . . . . Database Lockouts . | . . . . . . . . . . . . . . . . . . . Manual 75 | . 7 . 8 . . . 5 3 14 . 1 . 32 . . . . 5 Terminals 92 | . 10 . 18 . . . 7 6 10 . 2 . 35 . . . . 4 Fabricators 11 | . . . . . . . . . . . . . 6 . . . . 5 Repair Stations 12 | . . . 2 . . . 3 2 . . . . 5 . . . . . Recycling Units 27 | . 5 . . . . . . . 7 . . . 13 . . . . 2 Scanalyzers 9 | . . . 2 . . . . . . . 2 . 5 . . . . . Garrison Access 8 | . . . . . . . . 1 . . 3 . 4 . . . . . Terminal Hacks 84 | . 1 . 4 1 23 . 2 1 . 13 1 . 4 1 . 32 1 . Record 44 | . . . . . 23 . . . . 9 . . . . . 11 1 . Part Schematic 12 | . . . . . . . . . . . . . 1 . . 11 . . Robot Schematic 7 | . . . . . . . . . . . . . . . . 7 . . Robot Analysis 6 | . . . 2 . . . . 1 . 3 . . . . . . . . Prototype ID Bank 4 | . 1 . . . . . . . . . . . . . . 3 . . Open Door 2 | . . . . 1 . . . . . . . . . 1 . . . . Locate Traps 6 | . . . 2 . . . 2 . . . . . 2 . . . . . Patrol Status 1 | . . . . . . . . . . . 1 . . . . . . . Hauler Manifests 1 | . . . . . . . . . . . . . 1 . . . . . Proto ID Catalog 1 | . . . . . . . . . . 1 . . . . . . . . Fabricator Hacks 4 | . . . . . . . . . . . . . 1 . . . . 3 Network Status 1 | . . . . . . . . . . . . . 1 . . . . . Load Schematic 2 | . . . . . . . . . . . . . . . . . . 2 Build 1 | . . . . . . . . . . . . . . . . . . 1 Repair Station Hacks 10 | . . . 2 . . . 2 2 . . . . 4 . . . . . Scan Component 5 | . . . 1 . . . 1 1 . . . . 2 . . . . . Repair 5 | . . . 1 . . . 1 1 . . . . 2 . . . . . Recycling Unit Hacks 7 | . 3 . . . . . . . 3 . . . 1 . . . . . Report Inventory 6 | . 2 . . . . . . . 3 . . . 1 . . . . . Retrieve Matter 1 | . 1 . . . . . . . . . . . . . . . . . Scanalyzer 6 | . . . 2 . . . . . . . 1 . 3 . . . . . Insert Component 4 | . . . 1 . . . . . . . 1 . 2 . . . . . Analyze 2 | . . . 1 . . . . . . . . . 1 . . . . . Garrison Access Hacks 3 | . . . . . . . . . . . 2 . 1 . . . . . Seal Access 3 | . . . . . . . . . . . 2 . 1 . . . . . Unauthorized Hacks 34 | . 5 . 6 . . . 2 2 8 . . . 7 . . . . 4 Terminals 20 | . 3 . 6 . . . 2 2 4 . . . 1 . . . . 2 Assimilate 2 | . 1 . . . . . . . . . . . 1 . . . . . Botnet 4 | . . . 1 . . . 1 1 . . . . . . . . . 1 Operators 4 | . 1 . . . . . 1 1 . . . . . . . . . 1 Skim 10 | . 1 . 5 . . . . . 4 . . . . . . . . . Fabricators 1 | . . . . . . . . . . . . . 1 . . . . . Liberate 1 | . . . . . . . . . . . . . 1 . . . . . Repair Stations . | . . . . . . . . . . . . . . . . . . . Recycling Units 13 | . 2 . . . . . . . 4 . . . 5 . . . . 2 Mask 1 | . . . . . . . . . . . . . 1 . . . . . Tunnel 6 | . 2 . . . . . . . 4 . . . . . . . . . Fedlink 4 | . . . . . . . . . . . . . 3 . . . . 1 Scrapoids 2 | . . . . . . . . . . . . . 1 . . . . 1 Scanalyzers . | . . . . . . . . . . . . . . . . . . . Garrison Access . | . . . . . . . . . . . . . . . . . . . Data Cores Recovered 1 | . . . . . . . . . . . . . 1 . . . . . Used 1 | . . . . . . . . . . . . . 1 . . . . . Hacking Detections 52 | . 3 . 6 . . . 3 5 5 . 3 . 24 . . . . 3 Full Trace Events 11 | . 2 . 1 . . . . . . . . . 6 . . . . 2 Feedback Events 2 | . . . . . . . . . . . . . 2 . . . . . Corruption 1 | . . . . . . . . . . . . . 1 . . . . . Hackware Fried 1 | . . . . . . . . . . . . . 1 . . . . . Feedback Blocked . | . . . . . . . . . . . . . . . . . . . Robot Schematics Acquired 7 | . . . . . . . . . . . . . . . . 7 . . Robots Built . | . . . . . . . . . . . . . . . . . . . Authchips . | . . . . . . . . . . . . . . . . . . . Time . | . . . . . . . . . . . . . . . . . . . Total Robot Build Rating . | . . . . . . . . . . . . . . . . . . . Part Schematics Acquired 14 | . . . 1 . . . . . . . . . 2 . . 11 . . Parts Built 1 | . . . . . . . . . . . . . . . . . . 1 Authchips . | . . . . . . . . . . . . . . . . . . . Time 95 | . . . . . . . . . . . . . . . . . . 95 Total Part Build Rating 5 | . . . . . . . . . . . . . . . . . . 5 Parts Repaired 5 | . . . 1 . . . 1 1 . . . . 2 . . . . . Time 182 | . . . 26 . . . 32 26 . . . . 98 . . . . . Parts Recycled . | . . . . . . . . . . . . . . . . . . . Recycled Matter . | . . . . . . . . . . . . . . . . . . . Retrieved Matter 20 | . 20 . . . . . . . . . . . . . . . . . Retrieved Components . | . . . . . . . . . . . . . . . . . . . Parts Scanalyzed 4 | . . . 1 . . . . . . . 1 . 2 . . . . . Part Schematics Acquired 2 | . . . 1 . . . . . . . . . 1 . . . . . Parts Damaged . | . . . . . . . . . . . . . . . . . . . Bothacking | -11 -10 -10 -9 -9 -9 -8 -8 -8 -8 -8 -6 -6 -6 -6 -6 -6 -5 -5 ------------ Run | Yrd Mat Min Mat Min Exi Min Mat Sto Rec Scr Fac Was Fac Low Low Dat Pro Fac Used RIF Installer . | . . . . . . . . . . . . . . . . . . . Robots Hacked 2 | . . . . . . . . 1 1 . . . . . . . . . Non-combat . | . . . . . . . . . . . . . . . . . . . Combat 2 | . . . . . . . . 1 1 . . . . . . . . . Robot Hacks Applied 2 | . . . . . . . . 1 1 . . . . . . . . . parse_system 2 | . . . . . . . . 1 1 . . . . . . . . . Relay Couplers Released . | . . . . . . . . . . . . . . . . . . . Fabnet Peak Effective % . | . . . . . . . . . . . . . . . . . . . Robots Rewired . | . . . . . . . . . . . . . . . . . . . Allies Hacked . | . . . . . . . . . . . . . . . . . . . Hacks Repelled . | . . . . . . . . . . . . . . . . . . . Allies | -11 -10 -10 -9 -9 -9 -8 -8 -8 -8 -8 -6 -6 -6 -6 -6 -6 -5 -5 -------- Run | Yrd Mat Min Mat Min Exi Min Mat Sto Rec Scr Fac Was Fac Low Low Dat Pro Fac Total Allies 37 | . . . . 4 . . . . . . . 20 8 . . . . 5 Largest Group 20 | . . . . 3 3 3 . . . . . 20 11 . . . . 5 Highest-Rated Group 715 | . . . . 40 40 40 . . . . . 715 411 . . . . 238 Highest-Rated Ally 50 | . . . . 31 16 16 . . . . . 50 46 . . . . 50 Total Orders . | . . . . . . . . . . . . . . . . . . . Ally Attacks 262 | . . . . 3 . 9 . . . . . 133 75 . . . . 42 Total Damage 8766 | . . . . 41 . 52 . . . . . 5937 1825 . . . . 911 Kills 30 | . . . . 1 . . . . . . . 13 11 . . . . 5 Allies Corrupted . | . . . . . . . . . . . . . . . . . . . Allies Melted 1 | . . . . . . . . . 1 . . . . . . . . . Intel | -11 -10 -10 -9 -9 -9 -8 -8 -8 -8 -8 -6 -6 -6 -6 -6 -6 -5 -5 ------- Run | Yrd Mat Min Mat Min Exi Min Mat Sto Rec Scr Fac Was Fac Low Low Dat Pro Fac Active Infowar (turns) 6288 | . . . . . . . 66 . . . 214 209 3355 723 716 163 579 263 Optics 164 | . . . . . . . . . . . 164 . . . . . . . Sensors 5299 | . . . . . . . . . . . 94 209 2961 672 368 154 578 263 Seismic 2277 | . . . . . . . 66 . . . 4 . 185 723 351 112 575 261 T.N.C. 475 | . . . . . . . . . . . . . 475 . . . . . Jamming 374 | . . . . . . . . . . . . . . . 365 9 . . ECM 424 | . . . . . . . . . . . . . 424 . . . . . Robot Analysis Total 157 | . . . 2 . . . . 1 . 3 . . . . . 151 . . Derelict Logs Recovered 7 | . . 1 . 2 . . . . . . . . . . 2 . 2 . Drone Launches . | . . . . . . . . . . . . . . . . . . . Drone Recoveries . | . . . . . . . . . . . . . . . . . . . Exploration | -11 -10 -10 -9 -9 -9 -8 -8 -8 -8 -8 -6 -6 -6 -6 -6 -6 -5 -5 ------------- Run | Yrd Mat Min Mat Min Exi Min Mat Sto Rec Scr Fac Was Fac Low Low Dat Pro Fac Turns Passed 28165 | 88 2700 1590 3726 1432 849 1657 2373 1010 956 3180 241 209 3477 1269 766 786 703 1153 Spaces Moved 20229 | 60 1132 684 1307 636 427 668 1067 594 473 1514 709 380 8170 790 408 352 342 516 Core 24 | 20 . . . . . . . . . . . . . . . . . 4 Treads 628 | 40 301 1 286 . . . . . . . . . . . . . . . Legs 3 | . . . . . . . . . . . . . . . . . . 3 Wheels 10572 | . 831 683 1021 636 427 668 1067 594 473 1514 . . 257 790 408 352 342 509 Hover . | . . . . . . . . . . . . . . . . . . . Flight 9002 | . . . . . . . . . . . 709 380 7913 . . . . . Fastest Speed 26 | 50 160 175 190 210 195 210 145 145 145 210 26 26 26 140 145 145 145 50 Average Speed 115 | 123 178 189 246 212 196 210 173 145 195 210 26 26 30 144 145 155 157 129 Slowest Speed 1700 | 160 480 480 320 230 210 230 230 145 210 210 99 26 155 210 145 160 160 1700 Overloaded Moves . | . . . . . . . . . . . . . . . . . . . Propulsion Burnouts . | . . . . . . . . . . . . . . . . . . . Robots Hopped 36 | . . . . . . . . . . . . . 36 . . . . . Potential Cave-ins . | . . . . . . . . . . . . . . . . . . . Cave-ins Triggered . | . . . . . . . . . . . . . . . . . . . Exploration Rate (%) 73 | 5 100 101 98 96 65 100 52 93 99 90 18 96 85 78 56 80 66 12 Regions Visited 18 Branch Regions 11 Pre-discovered Areas 30 | . 2 . 2 . 1 . . . 4 . . . 1 . . 20 . . Known Exits Taken 5 | . . . . . . 1 1 . 1 . . . 1 . . . 1 . Unknown Exits Taken 11 | 1 1 1 1 1 1 . . 1 . 1 . . . 1 1 1 . . Scrap Searched 16 | . . 2 . 1 . 2 . . . 6 . . . 2 2 . 1 . Spaces Dug 138 | . . 17 13 30 . . 13 13 . . . . 43 . . . . 9 Terrain Destroyed 487 | . . 55 28 63 . 13 40 13 . . . . 43 . . . 3 229 Melee 61 | . . 17 . . . . . 1 . . . . 43 . . . . . Projectile 106 | . . . . . . . 1 . . . . . . . . . 3 102 AOE 320 | . . 38 28 63 . 13 39 12 . . . . . . . . . 127 Terrain Rammed . | . . . . . . . . . . . . . . . . . . . Walls Destroyed . | . . . . . . . . . . . . . . . . . . . Machines Disabled . | . . . . . . . . . . . . . . . . . . . Actions | -11 -10 -10 -9 -9 -9 -8 -8 -8 -8 -8 -6 -6 -6 -6 -6 -6 -5 -5 --------- Run | Yrd Mat Min Mat Min Exi Min Mat Sto Rec Scr Fac Was Fac Low Low Dat Pro Fac Total 24095 | 71 1698 899 1682 685 439 886 1477 716 496 1517 764 489 8940 882 536 543 480 895 Wait 2382 | . 453 166 202 12 1 190 203 65 15 . 3 110 380 60 92 104 112 214 Move 20142 | 59 1131 683 1306 635 426 667 1066 593 472 1513 709 379 8099 789 407 351 341 516 Hop 34 | . . . . . . . . . . . . . 34 . . . . . Pick Up 244 | 6 30 3 34 7 2 2 28 5 . 1 7 . 87 2 1 9 2 18 Fast Attach 111 | 6 3 . 7 . 4 1 11 8 . 1 14 . 30 1 1 10 1 13 Attach 66 | . 2 1 8 1 . . 11 1 . . 4 . 18 . . 7 1 12 Detach 53 | . 2 . . . . . 2 1 . . 4 . 26 1 . 8 1 8 Swap 179 | . 4 4 22 7 . 7 21 4 2 . 5 . 33 14 19 13 11 13 Drop 263 | . 13 3 41 8 6 4 34 11 . 2 16 . 90 3 2 12 2 16 Fire 345 | . 60 21 62 15 . 15 38 1 . . . . 6 12 14 16 9 76 Melee 225 | . . 18 . . . . 32 27 7 . 2 . 126 . . 13 . . Ram 9 | . . . . . . . . . . . . . . . . . . 9 Kick . | . . . . . . . . . . . . . . . . . . . Crush . | . . . . . . . . . . . . . . . . . . . Escape Stasis . | . . . . . . . . . . . . . . . . . . . Rewire . | . . . . . . . . . . . . . . . . . . . Trap 42 | . . . . . . . 31 . . . . . 11 . . . . . Miscellaneous . | . . . . . . . . . . . . . . . . . . . Route ------- -11/Scrapyard -10/Materials (discovered 6 exits: *Mat x3 / [*Min x2] / [*Sub]) -10/Mines (discovered 3 exits: *Mat x2 / [*Sub]) -9/Materials (discovered 4 exits: *Mat x3 / *Min) -9/Mines (discovered 4 exits: *Mat x2 / *Exi / [*Zio]) -9/Exiles -8/Mines (discovered 2 exits: *Mat x2) -8/Materials (discovered 4 exits: *Fac x2 / *Sto x2) -8/Storage (discovered 2 exits: *Fac / *Rec) -8/Recycling (discovered 2 exits: *Fac / *Scr) -8/Scraptown (discovered 2 exits: *Fac x2) -6/Factory -6/Waste -6/Factory (discovered 4 exits: *Fac x2 / *Low x2) -6/Lower Caves -6/Lower Caves (discovered 2 exits: *Fac / *Dat) -6/Data Miner -5/Proximity Caves -5/Factory (discovered 2 exits: Fac / Upp) History --------- Turn | Location | Event 3 | -11/Scrapyard | Discovered new exit (range 16) 89 | -11/Scrapyard | Entered Materials 301 | -10/Materials | Build established: Mutant 316 | -10/Materials | Discovered new exit (range 15) 462 | -10/Materials | Discovered new exit (range 14) 1051 | -10/Materials | Discovered new exit (range 9) 1252 | -10/Materials | Discovered new exit (range 4) 1720 | -10/Materials | Discovered new exit (range 15) 1896 | -10/Materials | Discovered new exit (range 11) 2789 | -10/Materials | Entered Mines 3010 | -10/Mines | Discovered new exit (range 6) 3681 | -10/Mines | Discovered new exit (range 10) 3828 | -10/Mines | Discovered new exit (range 5) 3841 | -10/Mines | Received a Rocket Launcher from a helpful Derelict 4379 | -10/Mines | Entered Materials 4379 | -9/Materials | Evolved 2 slots: Weapon x2 4695 | -9/Materials | Build established: Gunner 5124 | -9/Materials | Discovered new exit (range 9) 6238 | -9/Materials | Repaired Lgt. Treads 6489 | -9/Materials | Discovered new exit (range 13) 6916 | -9/Materials | Learned 2 Storage zone layouts 6978 | -9/Materials | Learned location of 1 exit from Recycling 7002 | -9/Materials | Discovered new exit (range 15) 7031 | -9/Materials | Identified exit to Materials 7076 | -9/Materials | Learned location of Mines (-8) 7111 | -9/Materials | Learned Storage stockpile data 7209 | -9/Materials | Learned location of 2 exits from Materials 7979 | -9/Materials | First assault squad dispatched 8105 | -9/Materials | Entered Mines 8138 | -9/Mines | Assembled infested the area 8177 | -9/Mines | Met 8R-AWN 8332 | -9/Mines | Found DCF Scrap (13 items) 8386 | -9/Mines | Discovered exit to Materials (range 6) 8506 | -9/Mines | Received a Mining Laser from a helpful Derelict 8671 | -9/Mines | Met a Derelict who couldn't figure out how to use a Trap Extractor 8985 | -9/Mines | A Derelict revealed a hidden shortcut to a safe place 9171 | -9/Mines | Assisted by bots powering up and referring to "LRC-V3" 9175 | -9/Mines | Learned Materials emergency access door positions 9525 | -9/Mines | Discovered new exit (range 5) 9537 | -9/Mines | Entered Exiles 9537 | -9/Exiles | Accompanied by 3 allies 9589 | -9/Exiles | Welcomed by 8R-AWN 9617 | -9/Exiles | Met EX-HEX 9675 | -9/Exiles | Met EX-BIN 9843 | -9/Exiles | Build established: Mutant 9927 | -9/Exiles | Met EX-DEC 9979 | -9/Exiles | Learned location of Zion (-7) 10341 | -9/Exiles | Discovered new exit (range 15) 10386 | -9/Exiles | Entered Mines 10386 | -8/Mines | Accompanied by 3 allies 10472 | -8/Mines | Discovered exit to Materials (range 16) 10599 | -8/Mines | Build established: Gunner 10810 | -8/Mines | Discovered exit to Materials (range 7) 12040 | -8/Mines | System corruption reached 10% 12043 | -8/Mines | Entered Materials 12043 | -8/Materials | Evolved 2 slots: Propulsion x1, Utility x1 12044 | -8/Materials | Identified exit to Storage 12045 | -8/Materials | Identified exit to Factory 12311 | -8/Materials | Lost 3 parts (1n1u1w) 12528 | -8/Materials | Repaired Arm. Wheel 12722 | -8/Materials | Build established: Tank 13419 | -8/Materials | Build established: Gladiator 13830 | -8/Materials | Discovered exit to Storage (range 10) 14110 | -8/Materials | Core integrity fell below 50% 14416 | -8/Materials | Entered Storage 14440 | -8/Storage | Met 01-MTF 14550 | -8/Storage | Repaired Wheel 14925 | -8/Storage | Discovered exit to Factory (range 8) 15420 | -8/Storage | Used back door to open Recycling access 15420 | -8/Storage | Discovered new exit (range 3) 15426 | -8/Storage | Entered Recycling 15426 | -8/Recycling | Accompanied by 1 ally (01-MTF) 15427 | -8/Recycling | Identified exit to Scraptown 15778 | -8/Recycling | Discovered new exit (range 15) 16293 | -8/Recycling | Scanned before Scraplab entrance 16345 | -8/Recycling | Entered Scraplab 16382 | -8/Recycling | Entered Scraptown 16761 | -8/Scraptown | Discovered new exit (range 11) 17170 | -8/Scraptown | Heard Great Nut preacher, LISTEN AND RECITE! 17248 | -8/Scraptown | Visited UFD Registry 17248 | -8/Scraptown | Registered with UFD as "Autokit" 17275 | -8/Scraptown | Visited The Evicted 17338 | -8/Scraptown | Visited Assassins FH 17399 | -8/Scraptown | Visited Artisan Demo Area 17488 | -8/Scraptown | Visited Symbiants 17542 | -8/Scraptown | Visited Awakened 17639 | -8/Scraptown | Visited CR-KLE's Repair Center 17756 | -8/Scraptown | Visited Analyses Database 17805 | -8/Scraptown | Visited DA-N13 Charitable Foundation 17813 | -8/Scraptown | Found DCF Scrap (28 items) 17868 | -8/Scraptown | Visited Science Guys 17981 | -8/Scraptown | Visited LU-1G1's Boring Crew 18042 | -8/Scraptown | Visited Scrapoid Pod Storage 18073 | -8/Scraptown | Visited Junk Repository 18130 | -8/Scraptown | Visited Curators Association 18206 | -8/Scraptown | Visited Observation Area 18239 | -8/Scraptown | Visited Abandonware Association 18260 | -8/Scraptown | Learned abandonware demo "REVENGE.EXE" 18315 | -8/Scraptown | Visited Scrapoid Research Area 18519 | -8/Scraptown | Discovered new exit (range 5) 19445 | -8/Scraptown | Met Optimus 19445 | -8/Scraptown | Accepted into 0bPrime 19562 | -8/Scraptown | Entered Factory 19562 | -6/Factory | Evolved 4 slots: Propulsion x1, Utility x3 19803 | -6/Factory | Sucked down chute 19803 | -6/Factory | Entered Waste 19804 | -6/Waste | Met a frightened Derelict 19805 | -6/Waste | Spotted C-40 Crusher 19809 | -6/Waste | Spotted C-40 Crusher 19815 | -6/Waste | Spotted C-40 Crusher 19824 | -6/Waste | Warlord forces began an assault 19850 | -6/Waste | Spotted C-40 Crusher 19851 | -6/Waste | Spotted C-40 Crusher 19862 | -6/Waste | Allies destroyed C-40 Crusher 19876 | -6/Waste | Allies destroyed C-40 Crusher 19878 | -6/Waste | Allies destroyed C-40 Crusher 19880 | -6/Waste | Allies destroyed C-40 Crusher 19890 | -6/Waste | Spotted C-40 Crusher 19890 | -6/Waste | Allies destroyed C-40 Crusher 19892 | -6/Waste | Discovered new exit (range 11) 19909 | -6/Waste | Lost 8 allies 19942 | -6/Waste | Identified exit to Factory 20012 | -6/Waste | Entered Factory 20012 | -6/Factory | Accompanied by 10 allies 20117 | -6/Factory | Build established: Sprinter 20216 | -6/Factory | Hacking Suite fried by hacking feedback 20218 | -6/Factory | Discovered new exit (range 13) 20238 | -6/Factory | Loaded intel: 8 recycling unit locations 20259 | -6/Factory | Identified exit to Lower Caves 20347 | -6/Factory | Scrapoids reinforcements arrived? 20355 | -6/Factory | Learned location of Protoforge (-2) 20481 | -6/Factory | Discovered new exit (range 5) 20484 | -6/Factory | Identified exit to Factory 20560 | -6/Factory | Spotted B-75 Beast 21306 | -6/Factory | Discovered exit to Lower Caves (range 11) 21341 | -6/Factory | Build established: Hacker-Sprinter 21363 | -6/Factory | Found Hvy. Reactive Plating 21443 | -6/Factory | Discovered exit to Factory (range 12) 22665 | -6/Factory | Repaired Imp. Sensor Array 22726 | -6/Factory | Repaired Imp. VTOL Module 22980 | -6/Factory | System corruption reached 10% 23489 | -6/Factory | Entered Lower Caves 23784 | -6/Lower Caves | Build established: Tank 23885 | -6/Lower Caves | Found DCF Scrap (12 items) 24454 | -6/Lower Caves | Ambushed by research squad 24693 | -6/Lower Caves | Discovered new exit (range 15) 24758 | -6/Lower Caves | Entered another Lower Caves area 24812 | -6/Lower Caves | Discovered exit to Factory (range 14) 24918 | -6/Lower Caves | Attracted the attention of an 0b10 checkpoint 25157 | -6/Lower Caves | Attracted the attention of an 0b10 outpost 25356 | -6/Lower Caves | Encountered a Warlord checkpoint 25361 | -6/Lower Caves | Discovered new exit (range 14) 25369 | -6/Lower Caves | Learned Factory trap positions 25455 | -6/Lower Caves | Learned location of 2 exits from Factory 25524 | -6/Lower Caves | Entered Data Miner 25524 | -6/Data Miner | Discovered new exit (range 6) 25563 | -6/Data Miner | Met Data Miner 25592 | -6/Data Miner | Learned location of Section 7 (-2) 25592 | -6/Data Miner | Acquired the access code to Warlord's prototype stash 25615 | -6/Data Miner | Received God Mode back door access code from Data Miner 25650 | -6/Data Miner | Interfaced with the Data Conduit 25734 | -6/Data Miner | Core integrity fell below 50% 25810 | -6/Data Miner | Found Corrupted Exp. Thermal Shield 25850 | -6/Data Miner | System corruption reached 30% 26269 | -6/Data Miner | Build established: Scavenger-Tank 26310 | -6/Data Miner | Entered Proximity Caves 26406 | -5/Proximity Caves | Learned Factory stockpile data 26843 | -5/Proximity Caves | Learned Factory trap positions 26872 | -5/Proximity Caves | Found Alien Artifact 26965 | -5/Proximity Caves | Spotted B-75 Beast 26977 | -5/Proximity Caves | Destroyed B-75 Beast 26994 | -5/Proximity Caves | Discovered exit to Factory (range 5) 27013 | -5/Proximity Caves | Entered Factory 27013 | -5/Factory | Evolved 2 slots: Power x1, Utility x1 27014 | -5/Factory | Identified exit to Upper Caves 27014 | -5/Factory | Identified exit to Factory 27015 | -5/Factory | Loaded intel: 70 trap records 27017 | -5/Factory | Loaded intel: 323 machine locations 27077 | -5/Factory | System corruption reached 10% 27098 | -5/Factory | Loaded intel: 8 recycling unit locations 27234 | -5/Factory | Scrapoid reinforcements arrived 27295 | -5/Factory | Found Scrap Suit 27394 | -5/Factory | Lost 3 allies 27703 | -5/Factory | Build established: Scavenger-Scrapper 27749 | -5/Factory | Fabricated Hvy. Reactive Plating? 27753 | -5/Factory | Intercept squad dispatched 27762 | -5/Factory | Spotted Tracker 27798 | -5/Factory | Spotted Combat Programmer 27802 | -5/Factory | Destroyed Tracker 27824 | -5/Factory | Lost 3 parts (1n1u1w) 27824 | -5/Factory | Destroyed Combat Programmer 27870 | -5/Factory | Found Exp. Targeting Computer 27913 | -5/Factory | First assault squad dispatched 27939 | -5/Factory | Lost 8 parts (2p2n3u1w) 28100 | -5/Factory | Released all parts (9) 28166 | -5/Factory | Self-destructed Last Messages --------------- 28135_ ALERT: Potential suspicious activity detected, Programmers report to Factory Zone 6B. 28138_ Acquired Hcp. Storage Unit. 28140_ Acquired Recoil Stabilizer. 28143_ Acquired Coolant Injector. 28145_ Acquired Matter Compressor. 28145_ R-10 Processor collects Terrain Scanner. 28147_ Acquired Exp. Targeting Computer. 28149_ R-10 Processor collects Neutron Cannon. 28149_ Acquired Imp. Hardlight Generator. 28151_ System corrupted: Heat flow error (+141). 28152_ Acquired Alien Artifact. 28152_ R-10 Processor collects Welding Torch. 28154_ Acquired F-cell Engine. 28155_ Extracted 1 energy. 28156_ Acquired Adv. Energy Well. 28156_ R-10 Processor collects F-cell Engine. 28159_ R-10 Processor collects Linked Autogun. 28160_ Slammed into R-10 Processor. 28165_ Slug penetrates Assembly Bed. Map ----- +----------------------------------------------------+ | #?# """ ## #???# # """ #?????? | | #?# """ ## #???#################### """ #?????? | | ?/ """ ## #?????????????????# #??# #???? | | ### ## #?"""???????????###"####^ """ #??# | | #?# """ #? #?"""???????????# # """ #??# | | ??# """ #? #?"""???????????# # """ #??# | | ??# """ #? #???????????????# / #??# | | ??# #? #?"""???????????# """ # """ #??# | | ?#######+## #?"""???????????# """ # """ #??# | | ?+ #?"""???????????# """ # """ #??# | | ?#### #???????????????######## #??# | | ????# """ ##+##+#????????????????# """ #??# | | ?#??# """ #????????????????# """ #??# | | #??# """ #????????????????# """ ##### | | #### #????????????????# ^^ | | + #????????????????# """ | | ####### #####+## #????????????????# """ | | ???????# # ??# #?????###????????# """ | | ???????# # ??# #????## ########## | | ???????# # ?# #???## # ### """ # % ## | | ???????# # ?# ################## """ # [ | | ???????# # # ]** k """ # [ | | ???????# # # ]* ! # ! | | ########+# + ] = # ! | | # # ! h # ! | | # + !@!!] # | | # ?# ! !! ###+#########" | | #[ ?# R " !! # ## # | | # ??+ """ # # #? | | # ??### """" # ##?? | | # ?????# # """"" #??? | | ####?????# # """" #??? | | ##########????????###### # """ #??? | | ???# #?????????????????######## # #??? | | ????##????????????????????????# # #??? | | #############?????????????????# ####/######??? | | ###???????????????# #????????????? | | """ # #???????????????# #????????????? | | "Y" ##????????????????# #????????????? | | " " ##??????"""?"""???# #????????????? | | #???????"""?"""???? ?????????????? | | """" """" #???????"""?"""??????????????????????? | | """" """" #????????????????????????????????????? | | """" """" #???????"""?"""??????????????????????? | | """" """" #???????"""?"""??????????????????????? | | """" """" #???????"""?"""??????????????????????? | | """" """" #????????????????????????????????????? | | #????????????????????????????????????? | | #############????????????????????????????????????? | | ?????????????????????????????????????????????????? | +----------------------------------------------------+ Best States ------------- Heat Dissipation 113 Coolant Potential 65 Energy Generation 37 Energy Capacity 950 Matter Stores 300 Matter Capacity 300 Sight Range 22 Robot Scan Range 15 Terrain Scan Density 10 ECM Strength 1 Jamming Range 14 Base Temperature (-) 150 Armor Coverage 600 Resistance: KI 40 Resistance: TH 30 Resistance: EM 25 Weapon Shielding 66 Melee Speed Boost 40 Evasion (%) 64 Melee Accuracy 8 Core Analysis 6 Recoil Reduction 4 Offensive Hacking 20 Defensive Hacking 12 Trap Extractor Capacity 6 Item Schematics ----------------- Plasma Cutter | -9/Materials | Scanalyzed Imp. Weapon Shielding | -6/Factory | Scanalyzed Hvy. Reactive Plating | -6/Factory | Hacked Combat Drone Bay | -6/Data Miner | Free Lgt. Regenerative Plating | -6/Data Miner | Free Cld. Nuclear Pulse Thruster | -6/Data Miner | Free Imp. Thermal Defense Suite | -6/Data Miner | Free Imp. KE Penetrator | -6/Data Miner | Free Shield Leg | -6/Data Miner | Free Adv. Thermal Generator | -6/Data Miner | Free Hyp. Mass Driver | -6/Data Miner | Free Adv. Thermal Shield | -6/Data Miner | Free Imp. Armor Integrity Analyzer | -6/Data Miner | Free Linear Accelerator | -6/Data Miner | Free Robot Schematics ------------------ B-60 Warrior | -6/Data Miner | Free C-35 Carver | -6/Data Miner | Free L-41 Fighter | -6/Data Miner | Free Y-64 Sentinel | -6/Data Miner | Free R-10 Processor | -6/Data Miner | Free I-47 Archangel | -6/Data Miner | Free H-66 Slayer | -6/Data Miner | Free Fabricated ------------ Hvy. Reactive Plating | x1 | -5/Factory Repaired ---------- Lgt. Treads | 31% | -9/Materials Arm. Wheel | 39% | -8/Materials Wheel | 10% | -8/Storage Imp. Sensor Array | 31% | -6/Factory Imp. VTOL Module | 36% | -6/Factory Alien Tech Used ----------------- None Achievements -------------- None Challenges ------------ None Game ------ Seed SmartbombJammingObliterator Manual? 0 Play Time 03:46:14 Cumulative 493.3 hours Start 2025.06.23 @ 17:50:18 End 2025.07.12 @ 01:50:40 Sessions 25 Manual Loads 0 Difficulty Rogue Special Mode None Game No. 398 Rogue 390 Adventurer 0 Explorer 8 Win Type - Total 8 Types 6/0/2/0/0/0/0/0/0/0 Lore% 84 Gallery% 77 Achievement% 71 Wizard Run 0 Options --------- Layout 0 ASCII 0 Keyboard 1 Movement Vi Keybinds 0 Fullscreen 1 Font 18/SmallcapsGlow Map View 76x50 Zoom Use 0% Tactical HUD 1 Map Filters NONE Filters NONE Steam 1 RUN: 98a122b4-8837-4881-abfe-44815ac2c612